[Event "Titled Tuesday Blitz February 14 Early 2023"]
[White "De Souza, Cristiano Gomes"]
[Black "Loskutova, Viktoriya"]
[WhiteFideId "2151758"]
[BlackFideId "34166278"]
[WhiteElo "2018"]
[BlackElo "2153"]
[Result "1/2-1/2"]
[Round "09"]
[TimeControl "180+2"]
[Date "2023.02.14"]
[WhiteClock "0:00:21"]
[BlackClock "0:00:23"]

1. d4 {[%clk 0:03:00]}  Nf6 {[%clk 0:02:54]} 2. c4 {[%clk 0:03:00]}  e6 {[%clk 0:02:54]} 3. Nf3 {[%clk 0:03:00]}  b6 {[%clk 0:02:52]} 4. g3 {[%clk 0:02:59]}  Bb7 {[%clk 0:02:49]} 5. Bg2 {[%clk 0:02:58]}  Bb4+ {[%clk 0:02:49]} 6. Bd2 {[%clk 0:02:57]}  Be7 {[%clk 0:02:50]} 7. O-O {[%clk 0:02:56]}  O-O {[%clk 0:02:50]} 8. Bc3 {[%clk 0:02:56]}  c6 {[%clk 0:02:48]} 9. Nbd2 {[%clk 0:02:56]}  d5 {[%clk 0:02:48]} 10. Ne5 {[%clk 0:02:55]}  Nbd7 {[%clk 0:02:46]} 11. Nxd7 {[%clk 0:02:53]}  Qxd7 {[%clk 0:02:45]} 12. e4 {[%clk 0:02:53]}  dxc4 {[%clk 0:02:11]} 13. Nxc4 {[%clk 0:02:50]}  c5 {[%clk 0:02:10]} 14. Ne5 {[%clk 0:02:47]}  Qc7 {[%clk 0:01:59]} 15. dxc5 {[%clk 0:02:46]}  Bxc5 {[%clk 0:01:57]} 16. Qe2 {[%clk 0:02:42]}  Rad8 {[%clk 0:01:51]} 17. Rfd1 {[%clk 0:02:39]}  Rxd1+ {[%clk 0:01:44]} 18. Rxd1 {[%clk 0:02:38]}  Rd8 {[%clk 0:01:45]} 19. Rxd8+ {[%clk 0:02:16]}  Qxd8 {[%clk 0:01:46]} 20. h3 {[%clk 0:02:08]}  h6 {[%clk 0:01:35]} 21. Kh2 {[%clk 0:02:07]}  Qa8 {[%clk 0:01:25]} 22. f3 {[%clk 0:01:48]}  Qd8 {[%clk 0:01:24]} 23. b4 {[%clk 0:01:36]}  Be7 {[%clk 0:01:20]} 24. a3 {[%clk 0:01:24]}  Qc7 {[%clk 0:01:20]} 25. Qc4 {[%clk 0:01:13]}  Qb8 {[%clk 0:01:05]} 26. Nc6 {[%clk 0:01:08]}  Bxc6 {[%clk 0:00:46]} 27. Qxc6 {[%clk 0:01:06]}  Bd6 {[%clk 0:00:45]} 28. f4 {[%clk 0:01:05]}  Be7 {[%clk 0:00:37]} 29. Be5 {[%clk 0:00:58]}  Qd8 {[%clk 0:00:31]} 30. Qb7 {[%clk 0:00:32]}  Qd7 {[%clk 0:00:30]} 31. Qxd7 {[%clk 0:00:18]}  Nxd7 {[%clk 0:00:31]} 32. Bc7 {[%clk 0:00:18]}  a5 {[%clk 0:00:31]} 33. bxa5 {[%clk 0:00:17]}  bxa5 {[%clk 0:00:32]} 34. Bxa5 {[%clk 0:00:16]}  Bxa3 {[%clk 0:00:32]} 35. e5 {[%clk 0:00:16]}  Bc5 {[%clk 0:00:29]} 36. Bc7 {[%clk 0:00:16]}  Nf8 {[%clk 0:00:28]} 37. Bc6 {[%clk 0:00:16]}  Ng6 {[%clk 0:00:26]} 38. Kg2 {[%clk 0:00:15]}  Ne7 {[%clk 0:00:25]} 39. Be4 {[%clk 0:00:14]}  Nf5 {[%clk 0:00:18]} 40. Bxf5 {[%clk 0:00:14]}  exf5 {[%clk 0:00:19]} 41. Kf3 {[%clk 0:00:14]}  g6 {[%clk 0:00:19]} 42. g4 {[%clk 0:00:15]}  Kg7 {[%clk 0:00:18]} 43. Ba5 {[%clk 0:00:14]}  Be7 {[%clk 0:00:17]} 44. Bd2 {[%clk 0:00:15]}  Kh7 {[%clk 0:00:18]} 45. Ke3 {[%clk 0:00:15]}  Kg8 {[%clk 0:00:18]} 46. Kd3 {[%clk 0:00:15]}  Kf8 {[%clk 0:00:19]} 47. Kc4 {[%clk 0:00:15]}  Ke8 {[%clk 0:00:19]} 48. Kd5 {[%clk 0:00:16]}  Kd7 {[%clk 0:00:20]} 49. gxf5 {[%clk 0:00:14]}  gxf5 {[%clk 0:00:21]} 50. Be3 {[%clk 0:00:14]}  Bh4 {[%clk 0:00:21]} 51. Bc5 {[%clk 0:00:15]}  Bd8 {[%clk 0:00:20]} 52. Bd6 {[%clk 0:00:15]}  h5 {[%clk 0:00:21]} 53. Bc5 {[%clk 0:00:14]}  Bh4 {[%clk 0:00:21]} 54. Be3 {[%clk 0:00:15]}  Bg3 {[%clk 0:00:21]} 55. e6+ {[%clk 0:00:15]}  fxe6+ {[%clk 0:00:21]} 56. Ke5 {[%clk 0:00:16]}  Ke7 {[%clk 0:00:22]} 57. Bc5+ {[%clk 0:00:15]}  Kf7 {[%clk 0:00:23]} 58. Be3 {[%clk 0:00:14]}  Ke7 {[%clk 0:00:23]} 59. Bc5+ {[%clk 0:00:14]}  Kf7 {[%clk 0:00:24]} 60. Be3 {[%clk 0:00:14]}  Bh4 {[%clk 0:00:24]} 61. Kd6 {[%clk 0:00:14]}  Be7+ {[%clk 0:00:25]} 62. Ke5 {[%clk 0:00:14]}  Bd8 {[%clk 0:00:25]} 63. Kd6 {[%clk 0:00:14]}  Ba5 {[%clk 0:00:25]} 64. Kd7 {[%clk 0:00:15]}  Bb4 {[%clk 0:00:25]} 65. Kc6 {[%clk 0:00:15]}  Bc3 {[%clk 0:00:25]} 66. Kb5 {[%clk 0:00:15]}  Kf6 {[%clk 0:00:25]} 67. Kc4 {[%clk 0:00:15]}  Ba1 {[%clk 0:00:25]} 68. Kd3 {[%clk 0:00:16]}  e5 {[%clk 0:00:26]} 69. Ke2 {[%clk 0:00:16]}  exf4 {[%clk 0:00:25]} 70. Bxf4 {[%clk 0:00:17]}  Be5 {[%clk 0:00:25]} 71. Be3 {[%clk 0:00:17]}  f4 {[%clk 0:00:26]} 72. Bf2 {[%clk 0:00:17]}  Kf5 {[%clk 0:00:26]} 73. Kf3 {[%clk 0:00:18]}  Bf6 {[%clk 0:00:26]} 74. Be1 {[%clk 0:00:19]}  Be5 {[%clk 0:00:27]} 75. Bd2 {[%clk 0:00:19]}  Bd6 {[%clk 0:00:27]} 76. Be1 {[%clk 0:00:20]}  Kg5 {[%clk 0:00:27]} 77. Bf2 {[%clk 0:00:19]}  Be5 {[%clk 0:00:27]} 78. Be1 {[%clk 0:00:20]}  Bd4 {[%clk 0:00:25]} 79. Bd2 {[%clk 0:00:20]}  Be5 {[%clk 0:00:23]} 80. h4+ {[%clk 0:00:20]}  Kf5 {[%clk 0:00:21]} 81. Bxf4 {[%clk 0:00:19]}  Bxf4 {[%clk 0:00:21]} 82. Kg2 {[%clk 0:00:20]}  Kg4 {[%clk 0:00:21]} 83. Kh1 {[%clk 0:00:20]}  Kxh4 {[%clk 0:00:22]} 84. Kg1 {[%clk 0:00:20]}  Kh3 {[%clk 0:00:22]} 85. Kh1 {[%clk 0:00:21]}  Bh2 {[%clk 0:00:23]} 1/2-1/2


[Site "https://www.chess.com"]

[Event "Titled Tuesday Blitz February 14 Early 2023"]
[White "Nugumanov, Bakhtiyar"]
[Black "Kielinkei"]
[WhiteFideId "13701797"]
[WhiteElo "2316"]
[BlackElo "2360"]
[Result "1-0"]
[Round "09"]
[TimeControl "180+2"]
[Date "2023.02.14"]
[WhiteClock "0:00:03"]
[BlackClock "0:00:03"]

1. Nf3 {[%clk 0:02:58]}  Nf6 {[%clk 0:02:55]} 2. c4 {[%clk 0:02:58]}  e6 {[%clk 0:02:54]} 3. g3 {[%clk 0:02:56]}  d5 {[%clk 0:02:53]} 4. Bg2 {[%clk 0:02:56]}  Be7 {[%clk 0:02:49]} 5. O-O {[%clk 0:02:56]}  O-O {[%clk 0:02:49]} 6. b3 {[%clk 0:02:54]}  d4 {[%clk 0:02:43]} 7. e3 {[%clk 0:02:34]}  c5 {[%clk 0:02:41]} 8. exd4 {[%clk 0:02:34]}  cxd4 {[%clk 0:02:42]} 9. Ba3 {[%clk 0:02:34]}  Nc6 {[%clk 0:02:35]} 10. Bxe7 {[%clk 0:02:33]}  Qxe7 {[%clk 0:02:36]} 11. d3 {[%clk 0:02:33]}  e5 {[%clk 0:02:31]} 12. Re1 {[%clk 0:02:32]}  Qc7 {[%clk 0:02:19]} 13. a3 {[%clk 0:02:30]}  a5 {[%clk 0:02:19]} 14. Nbd2 {[%clk 0:02:29]}  Bf5 {[%clk 0:02:14]} 15. Qc2 {[%clk 0:02:21]}  h6 {[%clk 0:02:11]} 16. Rab1 {[%clk 0:02:16]}  Rfe8 {[%clk 0:01:55]} 17. b4 {[%clk 0:02:14]}  axb4 {[%clk 0:01:56]} 18. axb4 {[%clk 0:02:14]}  Ra3 {[%clk 0:01:50]} 19. Ne4 {[%clk 0:02:11]}  Bxe4 {[%clk 0:01:30]} 20. dxe4 {[%clk 0:02:12]}  Rea8 {[%clk 0:01:25]} 21. c5 {[%clk 0:01:39]}  Rc3 {[%clk 0:01:19]} 22. Qd2 {[%clk 0:01:24]}  Ra4 {[%clk 0:01:15]} 23. b5 {[%clk 0:00:48]}  Na5 {[%clk 0:01:10]} 24. c6 {[%clk 0:00:48]}  Nc4 {[%clk 0:01:01]} 25. Qd1 {[%clk 0:00:48]}  Ra2 {[%clk 0:00:55]} 26. cxb7 {[%clk 0:00:45]}  Qxb7 {[%clk 0:00:46]} 27. Re2 {[%clk 0:00:24]}  Ra5 {[%clk 0:00:31]} 28. Nxd4 {[%clk 0:00:20]}  exd4 {[%clk 0:00:22]} 29. Qxd4 {[%clk 0:00:20]}  Raa3 {[%clk 0:00:11]} 30. e5 {[%clk 0:00:19]}  Qe7 {[%clk 0:00:10]} 31. b6 {[%clk 0:00:15]}  Nd7 {[%clk 0:00:08]} 32. b7 {[%clk 0:00:14]}  Nb8 {[%clk 0:00:08]} 33. e6 {[%clk 0:00:12]}  fxe6 {[%clk 0:00:05]} 34. Bh3 {[%clk 0:00:12]}  e5 {[%clk 0:00:04]} 35. Qd5+ {[%clk 0:00:12]}  Kh8 {[%clk 0:00:05]} 36. Kg2 {[%clk 0:00:05]}  Ra7 {[%clk 0:00:03]} 37. Rb5 {[%clk 0:00:02]}  Na3 {[%clk 0:00:02]} 38. Rb6 {[%clk 0:00:02]}  Rc7 {[%clk 0:00:03]} 39. Rd6 {[%clk 0:00:02]}  Raxb7 {[%clk 0:00:03]} 40. Rd8+ {[%clk 0:00:02]}  Kh7 {[%clk 0:00:03]} 41. Bf5+ {[%clk 0:00:03]}  g6 {[%clk 0:00:03]} 42. Qg8# {[%clk 0:00:03]} 1-0


[Site "https://www.chess.com"]

[Event "Titled Tuesday Blitz February 14 Early 2023"]
[White "Thiel, Thomas"]
[Black "Harriott, Tyrell"]
[WhiteFideId "4615964"]
[BlackFideId "2086484"]
[WhiteElo "2234"]
[BlackElo "1889"]
[Result "1-0"]
[Round "09"]
[TimeControl "180+2"]
[Date "2023.02.14"]
[WhiteClock "0:01:09"]
[BlackClock "0:00:17"]

1. e4 {[%clk 0:03:00]}  e6 {[%clk 0:02:58]} 2. d4 {[%clk 0:02:59]}  d5 {[%clk 0:02:58]} 3. Nc3 {[%clk 0:02:58]}  f5 {[%clk 0:02:58]} 4. exd5 {[%clk 0:02:57]}  exd5 {[%clk 0:02:57]} 5. Nf3 {[%clk 0:02:56]}  Nf6 {[%clk 0:02:57]} 6. Bg5 {[%clk 0:02:54]}  c6 {[%clk 0:02:54]} 7. Qe2+ {[%clk 0:02:51]}  Kf7 {[%clk 0:02:47]} 8. Ne5+ {[%clk 0:02:49]}  Kg8 {[%clk 0:02:47]} 9. O-O-O {[%clk 0:02:44]}  Be7 {[%clk 0:02:44]} 10. f3 {[%clk 0:02:40]}  Nbd7 {[%clk 0:02:32]} 11. h3 {[%clk 0:02:29]}  Nh5 {[%clk 0:02:26]} 12. Bxe7 {[%clk 0:02:23]}  Qxe7 {[%clk 0:02:27]} 13. Qe1 {[%clk 0:02:16]}  Qg5+ {[%clk 0:02:18]} 14. Kb1 {[%clk 0:02:13]}  Ng3 {[%clk 0:02:17]} 15. h4 {[%clk 0:02:11]}  Qf4 {[%clk 0:02:06]} 16. Nd3 {[%clk 0:02:08]}  Qd6 {[%clk 0:02:02]} 17. Rh3 {[%clk 0:01:57]}  f4 {[%clk 0:01:43]} 18. Ne5 {[%clk 0:01:47]}  Nxf1 {[%clk 0:01:28]} 19. Qxf1 {[%clk 0:01:45]}  Nxe5 {[%clk 0:01:28]} 20. dxe5 {[%clk 0:01:45]}  Qxe5 {[%clk 0:01:28]} 21. Re1 {[%clk 0:01:44]}  Qd6 {[%clk 0:00:55]} 22. Re8+ {[%clk 0:01:42]}  Kf7 {[%clk 0:00:55]} 23. Rxh8 {[%clk 0:01:41]}  Bxh3 {[%clk 0:00:55]} 24. Rxa8 {[%clk 0:01:39]}  Bd7 {[%clk 0:00:54]} 25. Ne2 {[%clk 0:01:30]}  c5 {[%clk 0:00:51]} 26. Qc1 {[%clk 0:01:28]}  Bf5 {[%clk 0:00:34]} 27. Qxf4 {[%clk 0:01:27]}  Qf6 {[%clk 0:00:34]} 28. Rxa7 {[%clk 0:01:23]}  Kg8 {[%clk 0:00:30]} 29. Qb8+ {[%clk 0:01:20]}  Kf7 {[%clk 0:00:29]} 30. Qxb7+ {[%clk 0:01:19]}  Kg6 {[%clk 0:00:21]} 31. Nf4+ {[%clk 0:01:16]}  Kh6 {[%clk 0:00:19]} 32. Ra6 {[%clk 0:01:13]}  Be6 {[%clk 0:00:17]} 33. Rxe6 {[%clk 0:01:12]}  Qxe6 {[%clk 0:00:17]} 34. Nxe6 {[%clk 0:01:10]}  Kh5 {[%clk 0:00:17]} 35. Qxg7 {[%clk 0:01:10]}  Kxh4 {[%clk 0:00:17]} 36. Qg4# {[%clk 0:01:09]} 1-0


[Site "https://www.chess.com"]

[Event "Titled Tuesday Blitz February 14 Early 2023"]
[White "Real_taiatai"]
[Black "Kiseleva, Arina"]
[BlackFideId "4164989"]
[WhiteElo "2349"]
[BlackElo "1962"]
[Result "1-0"]
[Round "09"]
[TimeControl "180+2"]
[Date "2023.02.14"]
[WhiteClock "0:00:24"]
[BlackClock "0:00:04"]

1. d4 {[%clk 0:03:00]}  Nf6 {[%clk 0:02:59]} 2. c3 {[%clk 0:03:01]}  e6 {[%clk 0:02:59]} 3. Nf3 {[%clk 0:02:54]}  b6 {[%clk 0:02:57]} 4. Bg5 {[%clk 0:02:52]}  Bb7 {[%clk 0:02:57]} 5. Nbd2 {[%clk 0:02:50]}  Be7 {[%clk 0:02:55]} 6. e3 {[%clk 0:02:47]}  h6 {[%clk 0:02:52]} 7. Bh4 {[%clk 0:02:44]}  d6 {[%clk 0:02:50]} 8. Bd3 {[%clk 0:02:43]}  Nbd7 {[%clk 0:02:50]} 9. e4 {[%clk 0:02:42]}  e5 {[%clk 0:02:37]} 10. Qe2 {[%clk 0:02:40]}  Nh5 {[%clk 0:02:31]} 11. Bxe7 {[%clk 0:02:33]}  Qxe7 {[%clk 0:02:30]} 12. g3 {[%clk 0:02:28]}  g6 {[%clk 0:02:14]} 13. a4 {[%clk 0:02:23]}  O-O {[%clk 0:02:00]} 14. Qe3 {[%clk 0:02:14]}  Kh7 {[%clk 0:01:47]} 15. a5 {[%clk 0:02:13]}  exd4 {[%clk 0:01:41]} 16. Nxd4 {[%clk 0:02:11]}  Rae8 {[%clk 0:01:35]} 17. a6 {[%clk 0:02:10]}  Ba8 {[%clk 0:01:35]} 18. O-O {[%clk 0:02:03]}  Nc5 {[%clk 0:01:33]} 19. f3 {[%clk 0:01:59]}  Nxd3 {[%clk 0:01:32]} 20. Qxd3 {[%clk 0:02:00]}  Ng7 {[%clk 0:01:25]} 21. Rae1 {[%clk 0:01:53]}  Qg5 {[%clk 0:01:18]} 22. f4 {[%clk 0:01:51]}  Qg4 {[%clk 0:01:05]} 23. f5 {[%clk 0:01:46]}  gxf5 {[%clk 0:00:48]} 24. exf5 {[%clk 0:01:45]}  f6 {[%clk 0:00:41]} 25. Ne6 {[%clk 0:01:28]}  Qh3 {[%clk 0:00:34]} 26. Nf3 {[%clk 0:01:24]}  Rg8 {[%clk 0:00:14]} 27. Nh4 {[%clk 0:01:19]}  Nh5 {[%clk 0:00:10]} 28. Nxc7 {[%clk 0:00:33]}  Rxe1 {[%clk 0:00:07]} 29. Rxe1 {[%clk 0:00:34]}  Nxg3 {[%clk 0:00:06]} 30. Re7+ {[%clk 0:00:30]}  Kh8 {[%clk 0:00:05]} 31. Ng6+ {[%clk 0:00:20]}  Rxg6 {[%clk 0:00:04]} 32. Re8+ {[%clk 0:00:20]}  Rg8 {[%clk 0:00:04]} 33. Rxg8+ {[%clk 0:00:20]}  Kxg8 {[%clk 0:00:05]} 34. Qxg3+ {[%clk 0:00:20]}  Qxg3+ {[%clk 0:00:04]} 35. hxg3 {[%clk 0:00:21]}  Bd5 {[%clk 0:00:04]} 36. Nxd5 {[%clk 0:00:21]}  Kf7 {[%clk 0:00:02]} 37. Nxb6 {[%clk 0:00:20]}  Ke7 {[%clk 0:00:03]} 38. Nc8+ {[%clk 0:00:21]}  Kd8 {[%clk 0:00:03]} 39. Nxa7 {[%clk 0:00:21]}  Kc7 {[%clk 0:00:03]} 40. Nb5+ {[%clk 0:00:22]}  Kb6 {[%clk 0:00:03]} 41. a7 {[%clk 0:00:23]}  Kb7 {[%clk 0:00:03]} 42. Kf2 {[%clk 0:00:23]}  Ka8 {[%clk 0:00:04]} 43. Ke3 {[%clk 0:00:24]} 1-0


[Site "https://www.chess.com"]

[Event "Titled Tuesday Blitz February 14 Early 2023"]
[White "Kvaloy, Aksel Bu"]
[Black "Kohler, Aran"]
[WhiteFideId "1528815"]
[BlackFideId "1002856"]
[WhiteElo "2321"]
[BlackElo "2010"]
[Result "1-0"]
[Round "09"]
[TimeControl "180+2"]
[Date "2023.02.14"]
[WhiteClock "0:00:25"]
[BlackClock "0:00:19"]

1. d4 {[%clk 0:02:35]}  Nf6 {[%clk 0:02:58]} 2. c4 {[%clk 0:02:33]}  e6 {[%clk 0:02:58]} 3. g3 {[%clk 0:02:30]}  c5 {[%clk 0:02:58]} 4. Nf3 {[%clk 0:02:29]}  a6 {[%clk 0:02:57]} 5. Bg2 {[%clk 0:02:29]}  cxd4 {[%clk 0:02:53]} 6. Nxd4 {[%clk 0:02:30]}  Nc6 {[%clk 0:02:53]} 7. O-O {[%clk 0:02:29]}  Bc5 {[%clk 0:02:51]} 8. Nb3 {[%clk 0:02:23]}  Be7 {[%clk 0:02:51]} 9. Nc3 {[%clk 0:02:22]}  O-O {[%clk 0:02:49]} 10. e4 {[%clk 0:02:22]}  d6 {[%clk 0:02:49]} 11. Be3 {[%clk 0:02:21]}  Ne5 {[%clk 0:02:43]} 12. Qe2 {[%clk 0:02:18]}  Qc7 {[%clk 0:02:37]} 13. Nd2 {[%clk 0:02:15]}  Bd7 {[%clk 0:02:32]} 14. h3 {[%clk 0:02:10]}  Bc6 {[%clk 0:02:24]} 15. f4 {[%clk 0:02:07]}  Ned7 {[%clk 0:02:25]} 16. b4 {[%clk 0:02:04]}  b5 {[%clk 0:02:02]} 17. cxb5 {[%clk 0:01:59]}  axb5 {[%clk 0:02:03]} 18. Nxb5 {[%clk 0:01:57]}  Bxb5 {[%clk 0:02:01]} 19. Qxb5 {[%clk 0:01:56]}  Rfb8 {[%clk 0:02:01]} 20. Qe2 {[%clk 0:01:53]}  Rxb4 {[%clk 0:01:55]} 21. Kh2 {[%clk 0:01:53]}  Ra3 {[%clk 0:01:49]} 22. Nb3 {[%clk 0:01:48]}  d5 {[%clk 0:01:46]} 23. exd5 {[%clk 0:01:40]}  exd5 {[%clk 0:01:34]} 24. Bd2 {[%clk 0:01:39]}  Nb6 {[%clk 0:01:18]} 25. Bxb4 {[%clk 0:01:36]}  Bxb4 {[%clk 0:01:17]} 26. Rac1 {[%clk 0:01:31]}  Qd8 {[%clk 0:01:00]} 27. Qb5 {[%clk 0:01:29]}  Bf8 {[%clk 0:00:56]} 28. Rc6 {[%clk 0:01:24]}  Nbd7 {[%clk 0:00:52]} 29. Rc2 {[%clk 0:01:10]}  Qa8 {[%clk 0:00:50]} 30. Qe2 {[%clk 0:01:05]}  h5 {[%clk 0:00:48]} 31. Rfc1 {[%clk 0:01:00]}  h4 {[%clk 0:00:45]} 32. g4 {[%clk 0:01:00]}  Qa4 {[%clk 0:00:38]} 33. Qf2 {[%clk 0:00:52]}  Bd6 {[%clk 0:00:38]} 34. Qd4 {[%clk 0:00:43]}  Qxd4 {[%clk 0:00:35]} 35. Nxd4 {[%clk 0:00:44]}  Bxf4+ {[%clk 0:00:35]} 36. Kh1 {[%clk 0:00:43]}  Bxc1 {[%clk 0:00:36]} 37. Rxc1 {[%clk 0:00:43]}  Rxa2 {[%clk 0:00:36]} 38. Nf5 {[%clk 0:00:41]}  g5 {[%clk 0:00:31]} 39. Rc7 {[%clk 0:00:38]}  Ra1+ {[%clk 0:00:28]} 40. Kh2 {[%clk 0:00:38]}  Kf8 {[%clk 0:00:26]} 41. Rc8+ {[%clk 0:00:36]}  Ne8 {[%clk 0:00:25]} 42. Nd6 {[%clk 0:00:37]}  Nf6 {[%clk 0:00:24]} 43. Nxe8 {[%clk 0:00:22]}  Nxe8 {[%clk 0:00:24]} 44. Bxd5 {[%clk 0:00:23]}  Rd1 {[%clk 0:00:21]} 45. Bc6 {[%clk 0:00:20]}  Re1 {[%clk 0:00:21]} 46. Kg2 {[%clk 0:00:19]}  f6 {[%clk 0:00:21]} 47. Kf2 {[%clk 0:00:20]}  Re5 {[%clk 0:00:20]} 48. Ba4 {[%clk 0:00:16]}  Kf7 {[%clk 0:00:20]} 49. Bb3+ {[%clk 0:00:17]}  Ke7 {[%clk 0:00:20]} 50. Ra8 {[%clk 0:00:17]}  Nd6 {[%clk 0:00:19]} 51. Ra7+ {[%clk 0:00:17]}  Kd8 {[%clk 0:00:20]} 52. Ba4 {[%clk 0:00:17]}  Ne4+ {[%clk 0:00:19]} 53. Kf3 {[%clk 0:00:17]}  Nc5 {[%clk 0:00:19]} 54. Bc2 {[%clk 0:00:16]}  Ke8 {[%clk 0:00:18]} 55. Bf5 {[%clk 0:00:16]}  Kd8 {[%clk 0:00:18]} 56. Rf7 {[%clk 0:00:16]}  Ke8 {[%clk 0:00:16]} 57. Rxf6 {[%clk 0:00:16]}  Rd5 {[%clk 0:00:17]} 58. Rg6 {[%clk 0:00:15]}  Nd3 {[%clk 0:00:16]} 59. Rxg5 {[%clk 0:00:15]}  Ne5+ {[%clk 0:00:17]} 60. Ke4 {[%clk 0:00:15]}  Ra5 {[%clk 0:00:16]} 61. Bg6+ {[%clk 0:00:15]}  Nxg6 {[%clk 0:00:15]} 62. Rxa5 {[%clk 0:00:15]}  Kf7 {[%clk 0:00:15]} 63. Kf5 {[%clk 0:00:15]}  Ne7+ {[%clk 0:00:15]} 64. Kg5 {[%clk 0:00:16]}  Kg7 {[%clk 0:00:14]} 65. Ra7 {[%clk 0:00:16]}  Kf7 {[%clk 0:00:13]} 66. Rxe7+ {[%clk 0:00:17]}  Kxe7 {[%clk 0:00:13]} 67. Kxh4 {[%clk 0:00:18]}  Kf6 {[%clk 0:00:14]} 68. Kh5 {[%clk 0:00:18]}  Kg7 {[%clk 0:00:14]} 69. h4 {[%clk 0:00:19]}  Kh7 {[%clk 0:00:15]} 70. g5 {[%clk 0:00:20]}  Kg7 {[%clk 0:00:15]} 71. g6 {[%clk 0:00:21]}  Kg8 {[%clk 0:00:16]} 72. Kg5 {[%clk 0:00:22]}  Kh8 {[%clk 0:00:16]} 73. h5 {[%clk 0:00:23]}  Kg7 {[%clk 0:00:17]} 74. h6+ {[%clk 0:00:23]}  Kg8 {[%clk 0:00:17]} 75. Kf6 {[%clk 0:00:23]}  Kh8 {[%clk 0:00:18]} 76. g7+ {[%clk 0:00:23]}  Kg8 {[%clk 0:00:18]} 77. h7+ {[%clk 0:00:24]}  Kxh7 {[%clk 0:00:18]} 78. Kf7 {[%clk 0:00:25]}  Kh6 {[%clk 0:00:19]} 79. g8=Q {[%clk 0:00:25]} 1-0


[Site "https://www.chess.com"]

[Event "Titled Tuesday Blitz February 14 Early 2023"]
[White "I_KID_you_not"]
[Black "Carrasco Miranda, Andres"]
[BlackFideId "3405990"]
[WhiteElo "2323"]
[BlackElo "2240"]
[Result "1-0"]
[Round "09"]
[TimeControl "180+2"]
[Date "2023.02.14"]
[WhiteClock "0:00:05"]
[BlackClock "0:00:17"]

1. e4 {[%clk 0:03:00]}  c5 {[%clk 0:02:58]} 2. Nc3 {[%clk 0:03:00]}  d6 {[%clk 0:02:55]} 3. d4 {[%clk 0:02:59]}  cxd4 {[%clk 0:02:55]} 4. Qxd4 {[%clk 0:03:00]}  Nc6 {[%clk 0:02:54]} 5. Qd2 {[%clk 0:03:00]}  g6 {[%clk 0:02:54]} 6. b3 {[%clk 0:03:00]}  Bh6 {[%clk 0:02:54]} 7. f4 {[%clk 0:03:01]}  Nf6 {[%clk 0:02:53]} 8. Bb2 {[%clk 0:02:59]}  e5 {[%clk 0:02:53]} 9. g3 {[%clk 0:02:56]}  O-O {[%clk 0:02:53]} 10. O-O-O {[%clk 0:02:55]}  Bg4 {[%clk 0:02:52]} 11. Be2 {[%clk 0:02:42]}  Qa5 {[%clk 0:02:48]} 12. Kb1 {[%clk 0:02:29]}  Rfd8 {[%clk 0:02:43]} 13. Nd5 {[%clk 0:02:10]}  Qxd2 {[%clk 0:02:37]} 14. Nxf6+ {[%clk 0:02:10]}  Kg7 {[%clk 0:02:37]} 15. Rxd2 {[%clk 0:02:02]}  Bxe2 {[%clk 0:02:36]} 16. Rxe2 {[%clk 0:01:39]}  Kxf6 {[%clk 0:02:35]} 17. Nf3 {[%clk 0:01:36]}  Ke6 {[%clk 0:02:35]} 18. Bc1 {[%clk 0:01:07]}  exf4 {[%clk 0:02:27]} 19. gxf4 {[%clk 0:01:07]}  Bg7 {[%clk 0:02:26]} 20. Ng5+ {[%clk 0:01:04]}  Ke7 {[%clk 0:02:27]} 21. Ba3 {[%clk 0:00:59]}  Nd4 {[%clk 0:02:25]} 22. Rd2 {[%clk 0:00:55]}  Nb5 {[%clk 0:02:25]} 23. Bb2 {[%clk 0:00:53]}  Bxb2 {[%clk 0:02:22]} 24. Kxb2 {[%clk 0:00:53]}  f6 {[%clk 0:02:20]} 25. Nf3 {[%clk 0:00:52]}  Rac8 {[%clk 0:02:17]} 26. c4 {[%clk 0:00:52]}  Nc7 {[%clk 0:02:15]} 27. f5 {[%clk 0:00:46]}  b5 {[%clk 0:02:07]} 28. Nd4 {[%clk 0:00:43]}  bxc4 {[%clk 0:02:07]} 29. Nc6+ {[%clk 0:00:43]}  Kf7 {[%clk 0:02:02]} 30. Nxd8+ {[%clk 0:00:43]}  Rxd8 {[%clk 0:02:03]} 31. bxc4 {[%clk 0:00:43]}  Na6 {[%clk 0:01:57]} 32. fxg6+ {[%clk 0:00:35]}  hxg6 {[%clk 0:01:58]} 33. Kc3 {[%clk 0:00:20]}  Nc5 {[%clk 0:01:57]} 34. Rd4 {[%clk 0:00:20]}  Rh8 {[%clk 0:01:48]} 35. h4 {[%clk 0:00:20]}  g5 {[%clk 0:01:40]} 36. h5 {[%clk 0:00:19]}  g4 {[%clk 0:01:39]} 37. Kc2 {[%clk 0:00:19]}  Ke6 {[%clk 0:01:38]} 38. h6 {[%clk 0:00:16]}  Rh7 {[%clk 0:01:38]} 39. e5 {[%clk 0:00:12]}  g3 {[%clk 0:00:57]} 40. Rxd6+ {[%clk 0:00:11]}  Kf5 {[%clk 0:00:31]} 41. exf6 {[%clk 0:00:08]}  Kg4 {[%clk 0:00:32]} 42. f7 {[%clk 0:00:08]}  Rxf7 {[%clk 0:00:31]} 43. h7 {[%clk 0:00:08]}  g2 {[%clk 0:00:32]} 44. h8=Q {[%clk 0:00:06]}  Ne4 {[%clk 0:00:25]} 45. Qh5+ {[%clk 0:00:05]}  Kg3 {[%clk 0:00:23]} 46. Rg6+ {[%clk 0:00:04]}  Kf2 {[%clk 0:00:22]} 47. Qh4+ {[%clk 0:00:04]}  Ke2 {[%clk 0:00:20]} 48. Re1+ {[%clk 0:00:04]}  Kf3 {[%clk 0:00:17]} 49. Qxe4+ {[%clk 0:00:05]}  Kf2 {[%clk 0:00:17]} 50. Qe3# {[%clk 0:00:05]} 1-0


[Site "https://www.chess.com"]

[Event "Titled Tuesday Blitz February 14 Early 2023"]
[White "Prieto Aranguren, Alain"]
[Black "Georg, Heinz"]
[WhiteFideId "2268906"]
[BlackFideId "4607295"]
[WhiteElo "2258"]
[BlackElo "2107"]
[Result "1-0"]
[Round "09"]
[TimeControl "180+2"]
[Date "2023.02.14"]
[WhiteClock "0:00:37"]
[BlackClock "0:00:04"]

1. d4 {[%clk 0:02:55]}  f5 {[%clk 0:02:59]} 2. Bg5 {[%clk 0:02:55]}  h6 {[%clk 0:02:58]} 3. Bh4 {[%clk 0:02:53]}  g5 {[%clk 0:02:58]} 4. e4 {[%clk 0:02:53]}  Nf6 {[%clk 0:02:58]} 5. e5 {[%clk 0:02:53]}  e6 {[%clk 0:02:57]} 6. exf6 {[%clk 0:02:53]}  Qxf6 {[%clk 0:02:57]} 7. Bg3 {[%clk 0:02:52]}  f4 {[%clk 0:02:56]} 8. Nf3 {[%clk 0:02:52]}  Bg7 {[%clk 0:02:53]} 9. Nc3 {[%clk 0:02:50]}  Nc6 {[%clk 0:02:51]} 10. Ne4 {[%clk 0:02:48]}  Qf5 {[%clk 0:02:31]} 11. Bd3 {[%clk 0:02:45]}  Qa5+ {[%clk 0:02:31]} 12. c3 {[%clk 0:02:44]}  fxg3 {[%clk 0:02:31]} 13. hxg3 {[%clk 0:02:42]}  d6 {[%clk 0:02:21]} 14. Nfxg5 {[%clk 0:02:37]}  hxg5 {[%clk 0:01:53]} 15. Rxh8+ {[%clk 0:01:27]}  Bxh8 {[%clk 0:01:54]} 16. Qh5+ {[%clk 0:01:26]}  Kd7 {[%clk 0:01:50]} 17. Qxh8 {[%clk 0:01:16]}  Ne7 {[%clk 0:01:50]} 18. Nf6+ {[%clk 0:01:04]}  Kc6 {[%clk 0:01:50]} 19. Qe8+ {[%clk 0:01:04]}  Kb6 {[%clk 0:01:47]} 20. Qxe7 {[%clk 0:01:03]}  a6 {[%clk 0:01:35]} 21. Ne8 {[%clk 0:01:01]}  Ka7 {[%clk 0:01:14]} 22. Nxc7 {[%clk 0:01:01]}  Rb8 {[%clk 0:01:09]} 23. Qxd6 {[%clk 0:01:01]}  b6 {[%clk 0:01:05]} 24. a4 {[%clk 0:00:53]}  g4 {[%clk 0:00:42]} 25. b4 {[%clk 0:00:49]}  Qg5 {[%clk 0:00:41]} 26. Nb5+ {[%clk 0:00:46]}  Ka8 {[%clk 0:00:25]} 27. Be4+ {[%clk 0:00:43]}  Bb7 {[%clk 0:00:25]} 28. Qxb6 {[%clk 0:00:39]}  Bxe4 {[%clk 0:00:04]} 29. Qa7# {[%clk 0:00:37]} 1-0


[Site "https://www.chess.com"]